fUST/lending_fUST_20250810
["ID","MTS","AMOUNT","RATE_DAILY","PERIOD"]
[378189301,1754776247374,-460.0,0.00022334,2]
[378189302,1754776247384,-460.0,0.00022334,2]
[378189303,1754776247393,-524.17,0.00022334,2]
[378189304,1754776247403,-460.0,0.00022334,2]
[378189305,1754776247412,-460.0,0.00022334,2]
[378189306,1754776247422,-460.0,0.00022334,2]
[378189307,1754776247431,-218.93,0.00022334,2]
[378189308,1754776247440,-460.0,0.00022334,2]
[378189309,1754776247450,-460.0,0.00022334,2]
[378189310,1754776247460,-169.12,0.00022334,2]
[378189311,1754776247469,-848.24,0.00022334,2]
[378189312,1754776247478,-460.0,0.00022334,2]
[378189313,1754776247487,-460.0,0.00022334,2]
[378189314,1754776247497,-460.0,0.00022334,2]
[378189315,1754776247506,-460.0,0.00022334,2]
[378189316,1754776247516,-476.01545935,0.00022334,2]
[378189317,1754776247525,-460.0,0.00022334,2]
[378189318,1754776247534,-460.0,0.00022334,2]
[378189319,1754776247543,-460.0,0.00022334,2]
[378189320,1754776247552,-460.0,0.00022334,2]
[378189321,1754776247561,-460.0,0.00022334,2]
[378189322,1754776247570,-1717.87,0.00022334,2]
[378189323,1754776247583,-460.0,0.00022334,2]
[378189324,1754776247596,-460.0,0.00022334,2]
[378189325,1754776247605,-2340.54,0.00022334,2]
[378189326,1754776247614,-460.0,0.00022334,2]
[378189327,1754776247623,-474.79,0.00022334,2]
[378189328,1754776247632,-460.0,0.00022334,2]
[378189329,1754776247641,-460.0,0.00022334,2]
[378189330,1754776247650,-460.0,0.00022334,2]
[378189331,1754776247660,-460.0,0.00022334,2]
[378189332,1754776247669,-460.0,0.00022334,2]
[378189333,1754776247678,-460.0,0.00022334,2]
[378189334,1754776247688,-643.64,0.00022334,2]
[378189335,1754776247697,-460.0,0.00022334,2]
[378189336,1754776247706,-460.0,0.00022334,2]
[378189337,1754776247715,-460.0,0.00022334,2]
[378189338,1754776247725,-460.0,0.00022334,2]
[378189339,1754776247734,-321.20605559,0.00022334,2]
[378189340,1754776247743,-460.0,0.00022334,2]
[378189341,1754776247752,-758.66,0.00022334,2]
[378189342,1754776247761,-594.95,0.00022334,2]
[378189343,1754776247771,-338.44299911,0.00022334,2]
[378189344,1754776247781,-460.0,0.00022334,2]
[378189345,1754776247791,-460.0,0.00022334,2]
[378189346,1754776247800,-460.0,0.00022334,2]
[378189347,1754776247814,-460.0,0.00022334,2]
[378189348,1754776247824,-460.0,0.00022334,2]
[378189349,1754776247833,-460.0,0.00022334,2]
[378189350,1754776247842,-460.0,0.00022334,2]
[378189351,1754776247851,-460.0,0.00022334,2]
[378189352,1754776247863,-529.4251067,0.00022334,2]
[378189353,1754776247874,-460.0,0.00022334,2]
[378189354,1754776247884,-460.0,0.00022334,2]
[378189355,1754776247894,-460.0,0.00022334,2]
[378189356,1754776247904,-460.0,0.00022334,2]
[378189357,1754776247914,-460.0,0.00022334,2]
[378189358,1754776247925,-1143.53,0.00022334,2]
[378189359,1754776247935,-511.96,0.00022334,2]
[378189360,1754776247945,-460.0,0.00022334,2]
[378189361,1754776247954,-467.82,0.00022334,2]
[378189362,1754776247963,-460.0,0.00022334,2]
[378189363,1754776247973,-469.27924811,0.00022334,2]
[378189364,1754776247982,-460.0,0.00022334,2]
[378189365,1754776247991,-460.0,0.00022334,2]
[378189366,1754776248000,-460.0,0.00022334,2]
[378189367,1754776248010,-742.69,0.00022334,2]
[378189368,1754776248019,-793.94,0.00022334,2]
[378189369,1754776248028,-460.0,0.00022334,2]
[378189370,1754776248037,-466.33812446,0.00022334,2]
[378189371,1754776248047,-460.0,0.00022334,2]
[378189372,1754776248056,-460.0,0.00022334,2]
[378189373,1754776248065,-460.0,0.00022334,2]
[378189374,1754776248075,-460.0,0.00022334,2]
[378189375,1754776248084,-460.0,0.00022334,2]
[378189376,1754776248094,-460.0,0.00022334,2]
[378189377,1754776248103,-460.0,0.00022334,2]
[378189378,1754776248112,-460.0,0.00022334,2]
[378189379,1754776248122,-467.29564541,0.00022334,2]
[378189380,1754776248132,-460.0,0.00022334,2]
[378189381,1754776248141,-460.0,0.00022334,2]
[378189382,1754776248151,-460.0,0.00022334,2]
[378189383,1754776248161,-465.81003736,0.00022334,2]
[378189384,1754776248171,-460.0,0.00022334,2]
[378189385,1754776248180,-460.0,0.00022334,2]
[378189386,1754776248190,-2312.65,0.00022334,2]
[378189387,1754776248199,-460.0,0.00022334,2]
[378189388,1754776248208,-691.07,0.00022334,2]
[378189389,1754776248217,-460.0,0.00022335,2]
[378189390,1754776248226,-460.0,0.00022335,2]
[378189391,1754776248236,-460.0,0.00022335,2]
[378189392,1754776248245,-460.0,0.00022335,2]
[378189393,1754776248255,-460.0,0.00022335,2]
[378189394,1754776248264,-460.0,0.00022335,2]
[378189395,1754776248274,-460.0,0.00022335,2]
[378189396,1754776248283,-467.6315465,0.00022335,2]
[378189397,1754776248292,-460.0,0.00022335,2]
[378189398,1754776248302,-460.0,0.00022335,2]
[378189399,1754776248312,-460.0,0.00022335,2]
[378189400,1754776248321,-460.0,0.00022335,2]
[378189401,1754776248330,-460.0,0.00022335,2]
[378189402,1754776248339,-460.0,0.00022335,2]
[378189403,1754776248349,-165.71,0.00022335,2]
[378189404,1754776248358,-460.0,0.00022335,2]
[378189405,1754776248367,-460.0,0.00022335,2]
[378189406,1754776248376,-460.0,0.00022335,2]
[378189407,1754776248386,-460.0,0.00022335,2]
[378189408,1754776248395,-465.02819862,0.00022335,2]
[378189409,1754776248405,-464.46784404,0.00022335,2]
[378189410,1754776248414,-460.0,0.00022335,2]
[378189411,1754776248423,-248.25990491,0.00022335,2]
[378189412,1754776248433,-471.5064121,0.00022335,2]
[378189413,1754776248442,-460.0,0.00022335,2]
[378189414,1754776248452,-460.0,0.00022335,2]
[378189415,1754776248461,-467.13030656,0.00022335,2]
[378189416,1754776248471,-460.0,0.00022335,2]
[378189417,1754776248480,-460.0,0.00022335,2]
[378189418,1754776248489,-460.0,0.00022335,2]
[378189419,1754776248499,-460.0,0.00022335,2]
[378189420,1754776248508,-460.0,0.00022335,2]
[378189421,1754776248517,-463.54229539,0.00022335,2]
[378189422,1754776248526,-460.0,0.00022335,2]
[378189423,1754776248535,-460.0,0.00022335,2]
[378189424,1754776248545,-460.0,0.00022335,2]
[378189425,1754776248554,-460.0,0.00022335,2]
[378189426,1754776248563,-150.0,0.00022373,2]
[378189427,1754776248573,-500.0,0.00022373,2]
[378189428,1754776248582,-500.0,0.00022373,2]
[378189429,1754776248591,-172.77642099,0.00022373,2]
[378189430,1754776248600,-500.0,0.00022373,2]
[378189431,1754776248609,-500.0,0.00022373,2]
[378189432,1754776248618,-634.47631651,0.00022441,2]
[378189433,1754776248627,-1872.41005116,0.00022441,2]
[378189434,1754776248637,-500.0,0.00022469,2]
[378189435,1754776248646,-558.72,0.00022469,2]
[378189436,1754776248655,-500.0,0.00022545,2]
[378189437,1754776248664,-160.0,0.00022577,2]
[378189438,1754776248673,-160.0,0.00022577,2]
[378189439,1754776248682,-215.40758176,0.00022577,2]
[378189440,1754776248692,-160.0,0.00022577,2]
[378189441,1754776248701,-160.0,0.00022577,2]
[378189442,1754776248710,-312.16666667,0.00022577,2]
[378189443,1754776248720,-12666.14847857,0.00022577,2]
[378189444,1754776248729,-216.61183532,0.00022577,2]
[378189445,1754776248739,-160.0,0.00022577,2]
[378189446,1754776248749,-842.95011917,0.00022577,2]
[378189447,1754776248758,-461.55179734,0.00022577,2]
[378189448,1754776248768,-231.92402426,0.00022577,2]
[378189449,1754776248777,-527.77735381,0.00022577,2]
[378189450,1754776248891,-500.0,0.0002258,2]
[378189451,1754776248902,-160.0,0.0002258,2]
[378189452,1754776248911,-460.0,0.00022608,2]
[378189453,1754776248921,-460.0,0.00022608,2]
[378189454,1754776248931,-460.0,0.00022608,2]
[378189455,1754776248940,-460.0,0.00022608,2]
[378189456,1754776248949,-501.32876335,0.00022608,2]
[378189457,1754776248959,-472.6,0.00022608,2]
[378189458,1754776248968,-460.0,0.00022608,2]
[378189459,1754776248978,-482.71,0.00022608,2]
[378189460,1754776248988,-460.0,0.00022608,2]
[378189461,1754776248997,-727.2,0.00022608,2]
[378189462,1754776249007,-460.0,0.00022608,2]
[378189463,1754776249017,-460.0,0.00022608,2]
[378189464,1754776249027,-524.17,0.00022608,2]
[378189465,1754776249037,-460.0,0.00022608,2]
[378189466,1754776249046,-460.0,0.00022608,2]
[378189467,1754776249055,-460.0,0.00022608,2]
[378189468,1754776249064,-574.72,0.00022608,2]
[378189469,1754776249074,-460.0,0.00022608,2]
[378189470,1754776249083,-848.24,0.00022608,2]
[378189471,1754776249093,-460.0,0.00022608,2]
[378189472,1754776249102,-460.0,0.00022608,2]
[378189473,1754776249111,-460.0,0.00022608,2]
[378189474,1754776249120,-460.0,0.00022608,2]
[378189475,1754776249130,-468.40683343,0.00022608,2]
[378189476,1754776249139,-1717.87,0.00022608,2]
[378189477,1754776249149,-460.0,0.00022608,2]
[378189478,1754776249159,-601.13125307,0.00022608,2]
[378189479,1754776249168,-2340.54,0.00022608,2]
[378189480,1754776249178,-460.0,0.00022608,2]
[378189481,1754776249188,-474.79,0.00022608,2]
[378189482,1754776249198,-460.0,0.00022608,2]
[378189483,1754776249207,-460.0,0.00022608,2]
[378189484,1754776249217,-460.0,0.00022608,2]
[378189485,1754776249227,-460.0,0.00022608,2]
[378189486,1754776249237,-460.0,0.00022608,2]
[378189487,1754776249247,-643.64,0.00022608,2]
[378189488,1754776249256,-460.0,0.00022608,2]
[378189489,1754776249266,-460.0,0.00022608,2]
[378189490,1754776249275,-460.0,0.00022608,2]
[378189491,1754776249284,-460.0,0.00022608,2]
[378189492,1754776249294,-460.0,0.00022608,2]
[378189493,1754776249303,-758.66,0.00022608,2]
[378189494,1754776249313,-594.95,0.00022608,2]
[378189495,1754776249322,-460.0,0.00022608,2]
[378189496,1754776249331,-460.0,0.00022608,2]
[378189497,1754776249341,-460.0,0.00022608,2]
[378189498,1754776249350,-460.0,0.00022608,2]
[378189499,1754776249359,-460.0,0.00022608,2]
[378189500,1754776249369,-460.0,0.00022608,2]
[378189501,1754776249378,-460.0,0.00022608,2]
[378189502,1754776249388,-460.0,0.00022608,2]
[378189503,1754776249398,-460.0,0.00022608,2]
[378189504,1754776249407,-460.0,0.00022608,2]
[378189505,1754776249416,-460.0,0.00022608,2]
[378189506,1754776249426,-1143.53,0.00022608,2]
[378189507,1754776249435,-511.96,0.00022608,2]
[378189508,1754776249444,-460.0,0.00022608,2]
[378189509,1754776249453,-467.82,0.00022608,2]
[378189510,1754776249463,-460.0,0.00022608,2]
[378189511,1754776249472,-460.0,0.00022608,2]
[378189512,1754776249482,-460.0,0.00022608,2]
[378189513,1754776249491,-742.69,0.00022608,2]
[378189514,1754776249501,-793.94,0.00022608,2]
[378189515,1754776249510,-460.0,0.00022608,2]
[378189516,1754776249520,-460.0,0.00022608,2]
[378189517,1754776249529,-460.0,0.00022608,2]
[378189518,1754776249539,-460.0,0.00022608,2]
[378189519,1754776249548,-460.0,0.00022608,2]
[378189520,1754776249557,-460.0,0.00022608,2]
[378189521,1754776249567,-460.0,0.00022608,2]
[378189522,1754776249577,-460.0,0.00022608,2]
[378189523,1754776249586,-460.0,0.00022608,2]
[378189524,1754776249595,-244.45398552,0.00022608,2]
[378189525,1754776249605,-460.0,0.00022608,2]
[378189526,1754776249615,-460.0,0.00022608,2]
[378189527,1754776249624,-460.0,0.00022608,2]
[378189528,1754776249633,-460.0,0.00022608,2]
[378189529,1754776249642,-460.0,0.00022608,2]
[378189530,1754776249651,-691.07,0.00022608,2]
[378189531,1754776249660,-460.0,0.00022609,2]
[378189532,1754776249670,-460.0,0.00022609,2]
[378189533,1754776249679,-460.0,0.00022609,2]
[378189534,1754776249687,-460.0,0.00022609,2]
[378189535,1754776249696,-460.0,0.00022609,2]
[378189536,1754776249706,-552.28,0.00022609,2]
[378189537,1754776249715,-460.0,0.00022609,2]
[378189538,1754776249725,-460.0,0.00022609,2]
[378189539,1754776249734,-460.0,0.00022609,2]
[378189540,1754776249744,-466.54347167,0.00022609,2]
[378189541,1754776249753,-460.0,0.00022609,2]
[378189542,1754776249763,-460.0,0.00022609,2]
[378189543,1754776249772,-460.0,0.00022609,2]
[378189544,1754776249781,-460.0,0.00022609,2]
[378189545,1754776249790,-460.0,0.00022609,2]
[378189546,1754776249800,-460.0,0.00022609,2]
[378189547,1754776249810,-500.0,0.00022609,2]
[378189548,1754776249822,-460.0,0.00022609,2]
[378189549,1754776249832,-460.0,0.00022609,2]
[378189550,1754776249841,-460.0,0.00022609,2]
[378189551,1754776249851,-460.0,0.00022609,2]
[378189552,1754776249861,-460.0,0.00022609,2]
[378189553,1754776249870,-460.0,0.00022609,2]
[378189554,1754776249879,-460.0,0.00022609,2]
[378189555,1754776249889,-460.0,0.00022609,2]
[378189556,1754776249899,-160.0,0.00022615,2]
[378189557,1754776249908,-500.0,0.0002271,2]
[378189558,1754776249918,-1500.0,0.00022868,2]
[378189559,1754776249927,-1020.49321637,0.00022868,2]
[378189560,1754776249936,-292.54,0.00022882,2]
[378189561,1754776249947,-183.0,0.00022882,2]
[378189562,1754776249958,-460.0,0.00022882,2]
[378189563,1754776249967,-472.6,0.00022882,2]
[378189564,1754776249977,-482.71,0.00022882,2]
[378189565,1754776249987,-460.0,0.00022882,2]
[378189566,1754776249996,-727.2,0.00022882,2]
[378189567,1754776250006,-460.0,0.00022882,2]
[378189568,1754776250015,-460.0,0.00022882,2]
[378189569,1754776250024,-460.0,0.00022882,2]
[378189570,1754776250033,-524.17,0.00022882,2]
[378189571,1754776250042,-470.39167517,0.00022882,2]
[378189572,1754776250057,-460.0,0.00022882,2]
[378189573,1754776250071,-460.0,0.00022882,2]
[378189574,1754776250084,-848.24,0.00022882,2]
[378189575,1754776250096,-460.0,0.00022882,2]
[378189576,1754776250111,-460.0,0.00022882,2]
[378189577,1754776250124,-460.0,0.00022882,2]
[378189578,1754776250137,-1717.87,0.00022882,2]
[378189579,1754776250151,-2340.54,0.00022882,2]
[378189580,1754776250165,-460.0,0.00022882,2]
[378189581,1754776250179,-474.79,0.00022882,2]
[378189582,1754776250193,-460.0,0.00022882,2]
[378189583,1754776250208,-269.12731385,0.00022882,2]
[378189584,1754776250221,-460.0,0.00022882,2]
[378189585,1754776250233,-460.0,0.00022882,2]
[378189586,1754776250246,-460.0,0.00022882,2]
[378189587,1754776250258,-643.64,0.00022882,2]
[378189588,1754776250271,-460.0,0.00022882,2]
[378189589,1754776250284,-460.0,0.00022882,2]
[378189590,1754776250296,-460.0,0.00022882,2]
[378189591,1754776250308,-460.0,0.00022882,2]
[378189592,1754776250318,-460.0,0.00022882,2]
[378189593,1754776250331,-758.66,0.00022882,2]
[378189594,1754776250343,-594.95,0.00022882,2]
[378189595,1754776250356,-460.0,0.00022882,2]
[378189596,1754776250368,-184.0,0.00022882,2]
[378189597,1754776250381,-460.0,0.00022882,2]
[378189598,1754776250394,-460.0,0.00022882,2]
[378189599,1754776250407,-460.0,0.00022882,2]
[378189600,1754776250421,-460.0,0.00022882,2]
[378189601,1754776250433,-436.87397326,0.00022882,2]
[378189602,1754776250443,-460.0,0.00022882,2]
[378189603,1754776250453,-460.0,0.00022882,2]
[378189604,1754776250463,-460.0,0.00022882,2]
[378189605,1754776250474,-1143.53,0.00022882,2]
[378189606,1754776250487,-511.96,0.00022882,2]
[378189607,1754776250500,-460.0,0.00022882,2]
[378189608,1754776250511,-467.82,0.00022882,2]
[378189609,1754776250521,-460.0,0.00022882,2]
[378189610,1754776250533,-460.0,0.00022882,2]
[378189611,1754776250544,-460.0,0.00022882,2]
[378189612,1754776250557,-742.69,0.00022882,2]
[378189613,1754776250568,-793.94,0.00022882,2]
[378189614,1754776250578,-460.0,0.00022882,2]
[378189615,1754776250589,-473.60785758,0.00022882,2]
[378189616,1754776250600,-460.0,0.00022882,2]
[378189617,1754776250611,-460.0,0.00022882,2]
[378189618,1754776250622,-460.0,0.00022882,2]
[378189619,1754776250633,-460.0,0.00022882,2]
[378189620,1754776250645,-460.0,0.00022882,2]
[378189621,1754776250656,-460.0,0.00022882,2]
[378189622,1754776250667,-460.0,0.00022882,2]
[378189623,1754776250678,-460.0,0.00022882,2]
[378189624,1754776250688,-460.0,0.00022882,2]
[378189625,1754776250700,-691.07,0.00022882,2]
[378189626,1754776250712,-460.0,0.00022883,2]
[378189627,1754776250724,-460.0,0.00022883,2]
[378189628,1754776250735,-515.32,0.00022883,2]
[378189629,1754776250746,-460.0,0.00022883,2]
[378189630,1754776250756,-460.0,0.00022883,2]
[378189631,1754776250769,-648.81672559,0.00022883,2]
[378189632,1754776250780,-184.9931898,0.00022883,2]
[378189633,1754776250791,-460.0,0.00022883,2]
[378189634,1754776250801,-204.82413181,0.00022883,2]
[378189635,1754776250816,-460.0,0.00022883,2]
[378189636,1754776250827,-460.0,0.00022883,2]
[378189637,1754776250838,-460.0,0.00022883,2]
[378189638,1754776250849,-234.04217954,0.00022883,2]
[378189639,1754776250861,-460.0,0.00022883,2]
[378189640,1754776250872,-460.0,0.00022883,2]
[378189641,1754776250883,-460.0,0.00022883,2]
[378189642,1754776250896,-250.0,0.00022921,2]
[378189643,1754776250907,-1000.0,0.00022921,2]
[378189644,1754776250918,-1000.0,0.00022921,2]
[378189645,1754776250929,-424.03539343,0.00022921,2]
[378189646,1754776250940,-1000.0,0.00022921,2]
[378189647,1754776250951,-500.0,0.00022973,2]
[378189648,1754776250962,-160.0,0.00023,2]
[378189649,1754776250973,-634.4763165,0.00023031,2]
[378189650,1754776250985,-460.0,0.00023156,2]
[378189651,1754776250995,-472.6,0.00023156,2]
[378189652,1754776251007,-482.71,0.00023156,2]
[378189653,1754776251018,-460.0,0.00023156,2]
[378189654,1754776251029,-727.2,0.00023156,2]
[378189655,1754776251040,-460.0,0.00023156,2]
[378189656,1754776251051,-460.0,0.00023156,2]
[378189657,1754776251064,-460.0,0.00023156,2]
[378189658,1754776251075,-524.17,0.00023156,2]
[378189659,1754776251085,-460.0,0.00023156,2]
[378189660,1754776251096,-239.36,0.00023156,2]
[378189661,1754776251108,-848.24,0.00023156,2]
[378189662,1754776251118,-460.0,0.00023156,2]
[378189663,1754776251129,-460.0,0.00023156,2]
[378189664,1754776251139,-460.0,0.00023156,2]
[378189665,1754776251150,-1717.87,0.00023156,2]
[378189666,1754776251161,-2340.54,0.00023156,2]
[378189667,1754776251172,-460.0,0.00023156,2]
[378189668,1754776251183,-474.79,0.00023156,2]
[378189669,1754776251194,-460.0,0.00023156,2]
[378189670,1754776251207,-460.0,0.00023156,2]
[378189671,1754776251219,-460.0,0.00023156,2]
[378189672,1754776251230,-213.3144082,0.00023156,2]
[378189673,1754776251242,-643.64,0.00023156,2]
[378189674,1754776251253,-460.0,0.00023156,2]
[378189675,1754776251264,-460.0,0.00023156,2]
[378189676,1754776251275,-460.0,0.00023156,2]
[378189677,1754776251286,-460.0,0.00023156,2]
[378189678,1754776251297,-460.0,0.00023156,2]
[378189679,1754776251308,-758.66,0.00023156,2]
[378189680,1754776251319,-594.95,0.00023156,2]
[378189681,1754776251330,-460.0,0.00023156,2]
[378189682,1754776251341,-460.0,0.00023156,2]
[378189683,1754776251352,-460.0,0.00023156,2]
[378189684,1754776251363,-259.36694017,0.00023156,2]
[378189685,1754776251374,-460.0,0.00023156,2]
[378189686,1754776251386,-548.92142068,0.00023156,2]
[378189687,1754776251397,-460.0,0.00023156,2]
[378189688,1754776251408,-1143.53,0.00023156,2]
[378189689,1754776251419,-511.96,0.00023156,2]
[378189690,1754776251572,-460.0,0.00023156,2]
[378189691,1754776251589,-467.82,0.00023156,2]
[378189692,1754776251599,-742.69,0.00023156,2]
[378189693,1754776251613,-793.94,0.00023156,2]
[378189694,1754776251622,-460.0,0.00023156,2]
[378189695,1754776251631,-460.0,0.00023156,2]
[378189696,1754776251640,-460.0,0.00023156,2]
[378189697,1754776251649,-460.0,0.00023156,2]
[378189698,1754776251659,-486.35325679,0.00023156,2]
[378189699,1754776251668,-460.0,0.00023156,2]
[378189700,1754776251677,-460.0,0.00023156,2]
[378189701,1754776251687,-460.0,0.00023156,2]
[378189702,1754776251696,-460.0,0.00023156,2]
[378189703,1754776251706,-460.0,0.00023156,2]
[378189704,1754776251717,-460.0,0.00023157,2]
[378189705,1754776251735,-460.0,0.00023157,2]
[378189706,1754776251744,-234.1,0.00023157,2]
[378189707,1754776251753,-460.0,0.00023157,2]
[378189708,1754776251762,-477.17239461,0.00023157,2]
[378189709,1754776251771,-460.0,0.00023157,2]
[378189710,1754776251780,-460.0,0.00023157,2]
[378189711,1754776251789,-185.36950658,0.00023157,2]
[378189712,1754776251798,-460.0,0.00023157,2]
[378189713,1754776251807,-260.0,0.00023163,2]
[378189714,1754776251821,-452.06,0.0002319,2]
[378189715,1754776251830,-500.0,0.00023288,2]
[378189716,1754776251840,-151.0,0.00023293,2]
[378189717,1754776251849,-151.0,0.00023293,2]
[378189718,1754776251858,-151.0,0.00023293,2]
[378189719,1754776251867,-151.0,0.00023293,2]
[378189720,1754776251876,-151.0,0.00023293,2]
[378189721,1754776251886,-151.0,0.00023293,2]
[378189722,1754776251897,-151.0,0.00023293,2]
[378189723,1754776251906,-151.0,0.00023293,2]
[378189724,1754776251916,-1680.0,0.00023387,2]
[378189725,1754776251925,-420.0,0.00023387,2]
[378189726,1754776251934,-300.0,0.00023407,2]
[378189727,1754776251943,-150.0,0.00023407,2]
[378189728,1754776251953,-500.0,0.00023409,2]
[378189729,1754776251962,-6450.34576144,0.00023409,2]
[378189730,1754776251971,-432.35,0.0002343,2]
[378189731,1754776251981,-472.6,0.0002343,2]
[378189732,1754776251991,-482.71,0.0002343,2]
[378189733,1754776252000,-460.0,0.0002343,2]
[378189734,1754776252008,-727.2,0.0002343,2]
[378189735,1754776252018,-460.0,0.0002343,2]
[378189736,1754776252027,-398.14,0.0002343,2]
[378189737,1754776252036,-524.17,0.0002343,2]
[378189738,1754776252046,-460.0,0.0002343,2]
[378189739,1754776252055,-848.24,0.0002343,2]
[378189740,1754776252064,-460.0,0.0002343,2]
[378189741,1754776252075,-460.0,0.0002343,2]
[378189742,1754776252091,-1717.87,0.0002343,2]
[378189743,1754776252100,-2340.54,0.0002343,2]
[378189744,1754776252109,-460.0,0.0002343,2]
[378189745,1754776252119,-474.79,0.0002343,2]
[378189746,1754776252128,-460.0,0.0002343,2]
[378189747,1754776252138,-460.0,0.0002343,2]
[378189748,1754776252148,-460.0,0.0002343,2]
[378189749,1754776252157,-643.64,0.0002343,2]
[378189750,1754776252167,-460.0,0.0002343,2]
[378189751,1754776252176,-460.0,0.0002343,2]
[378189752,1754776252186,-460.0,0.0002343,2]
[378189753,1754776252196,-460.0,0.0002343,2]
[378189754,1754776252205,-460.0,0.0002343,2]
[378189755,1754776252215,-758.66,0.0002343,2]
[378189756,1754776252225,-594.95,0.0002343,2]
[378189757,1754776252235,-460.0,0.0002343,2]
[378189758,1754776252244,-460.0,0.0002343,2]
[378189759,1754776252253,-460.0,0.0002343,2]
[378189760,1754776252262,-460.0,0.0002343,2]
[378189761,1754776252272,-1143.53,0.0002343,2]
[378189762,1754776252282,-511.96,0.0002343,2]
[378189763,1754776252302,-460.0,0.0002343,2]
[378189764,1754776252312,-467.82,0.0002343,2]
[378189765,1754776252321,-742.69,0.0002343,2]
[378189766,1754776252330,-793.94,0.0002343,2]
[378189767,1754776252341,-460.0,0.0002343,2]
[378189768,1754776252350,-186.62,0.0002343,2]
[378189769,1754776252359,-460.0,0.0002343,2]
[378189770,1754776252371,-460.0,0.0002343,2]
[378189771,1754776252381,-460.0,0.0002343,2]
[378189772,1754776252391,-460.0,0.0002343,2]
[378189773,1754776252400,-460.0,0.0002343,2]
[378189774,1754776252411,-499.68,0.00023431,2]
[378189775,1754776252420,-460.0,0.00023431,2]
[378189776,1754776252430,-460.0,0.00023431,2]
[378189777,1754776252439,-460.0,0.00023431,2]
[378189778,1754776252448,-350.0,0.00023468,2]
[378189779,1754776252459,-1500.0,0.00023468,2]
[378189780,1754776252468,-1500.0,0.00023468,2]
[378189781,1754776252477,-1000.0,0.00023468,2]
[378189782,1754776252486,-1200.0,0.00023497,2]
[378189783,1754776252495,-1000.0,0.00023521,2]
[378189784,1754776252504,-634.4763165,0.00023621,2]
[378189785,1754776252513,-703.28,0.00023694,3]
[378189786,1754776252522,-351.64,0.00023694,3]
[378189787,1754776252532,-1406.58,0.00023695,3]
[378189788,1754776252541,-472.6,0.00023704,2]
[378189789,1754776252550,-482.71,0.00023704,2]
[378189790,1754776252559,-460.0,0.00023704,2]
[378189791,1754776252569,-727.2,0.00023704,2]
[378189792,1754776252580,-460.0,0.00023704,2]
[378189793,1754776252589,-524.17,0.00023704,2]
[378189794,1754776252598,-460.0,0.00023704,2]
[378189795,1754776252607,-848.24,0.00023704,2]
[378189796,1754776252617,-167.2,0.00023704,2]
[378189797,1754776252626,-460.0,0.00023704,2]
[378189798,1754776252635,-1717.87,0.00023704,2]
[378189799,1754776252644,-2340.54,0.00023704,2]
[378189800,1754776252653,-595.82,0.00023704,2]